fUST/lending_fUST_20251116
["ID","MTS","AMOUNT","RATE_DAILY","PERIOD"]
[394061972,1763238662513,300.0,0.00019996,2]
[394061973,1763238667309,500.0,0.00019996,2]
[394061974,1763238667343,500.0,0.00019996,2]
[394061975,1763238667375,500.0,0.00019996,2]
[394061976,1763238667410,500.0,0.00019996,2]
[394061977,1763238667469,500.0,0.00019996,2]
[394061978,1763238667505,500.0,0.00019996,2]
[394061979,1763238667537,500.0,0.00019996,2]
[394061980,1763238667571,500.0,0.00019996,2]
[394061981,1763238667604,500.0,0.00019996,2]
[394061982,1763238667648,500.0,0.00019996,2]
[394061983,1763238667697,500.0,0.00019996,2]
[394061984,1763238667728,500.0,0.00019996,2]
[394061985,1763238667765,500.0,0.00019996,2]
[394061986,1763238667826,500.0,0.00019996,2]
[394061987,1763238667860,154.58336333,0.00019996,2]
[394061988,1763238667894,500.0,0.00019996,2]
[394061989,1763238667970,500.0,0.00019996,2]
[394061990,1763238668007,500.0,0.00019996,2]
[394061991,1763238668039,500.0,0.00019996,2]
[394061992,1763238668123,500.0,0.00019996,2]
[394061993,1763238668184,500.0,0.00019996,2]
[394061994,1763238683343,154.58336333,0.00019996,2]
[394061995,1763238683714,8189.66813483,0.00019898,2]
[394061996,1763238693246,550.0,0.00019996,2]
[394061997,1763238694417,211.40819264,0.00019996,2]
[394061998,1763238722504,300.0,0.00019996,2]
[394061999,1763238763642,3108.42034,0.00019553,2]
[394062000,1763238766375,1200.0,0.00019996,2]
[394062001,1763238782261,300.0,0.00019996,2]
[394062002,1763238810529,2173.1161045,0.00019115,2]
[394062003,1763238829073,9663.68,0.00019996,2]
[394062004,1763238829302,9663.68,0.00019996,2]
[394062005,1763238877282,493.21125822,0.00019897,2]
[394062006,1763238879048,560.55,0.00019996,2]
[394062007,1763238880322,500.0,0.00019996,2]
[394062008,1763238896552,1037.7818097,0.00019068,2]
[394062009,1763238902060,300.0,0.00019996,2]
[394062010,1763238903183,905.48747259,0.00032877,120]
[394062011,1763238905454,300.0,0.00019996,2]
[394062012,1763238907884,1200.0,0.00019996,2]
[394062013,1763238911326,201.93286099,0.00019988,2]
[394062014,1763238911580,151.0,0.000191,2]
[394062015,1763238911903,151.0,0.000178,2]
[394062016,1763238912242,151.0,0.000164,2]
[394062017,1763238912545,151.0,0.00015,2]
[394062018,1763238912862,151.0,0.000137,2]
[394062019,1763238913207,151.0,0.000123,2]
[394062021,1763238921465,151.0,0.00019988,2]
[394062022,1763238922114,151.0,0.00019988,2]
[394062023,1763238922787,151.0,0.00019988,2]
[394062024,1763238923471,203.53124725,0.00019988,2]
[394062025,1763238943925,7165.95961795,0.00019898,2]
[394062026,1763238948717,2336.15797526,0.00019911,2]
[394062027,1763238962229,300.0,0.00019996,2]
[394062028,1763238970270,4254.58,0.00019989,3]
[394062029,1763238981184,2127.29,0.00019989,3]
[394062030,1763238992253,1063.64,0.00019989,3]
[394062031,1763238997426,999.0,0.00018999,2]
[394062033,1763239000238,603.36,0.00019996,2]
[394062034,1763239001630,500.0,0.00019996,2]
[394062035,1763239002933,531.82,0.00019989,3]
[394062036,1763239013981,265.91,0.00019989,3]
[394062037,1763239022265,300.0,0.00019996,2]
[394062038,1763239024684,797.76,0.00019989,3]
[394062039,1763239051676,150.27284608,0.00019438,2]
[394062040,1763239054027,601.09138434,0.00019438,2]
[394062041,1763239056313,1352.45561476,0.00019438,2]
[394062042,1763239058709,2404.36553736,0.00019438,2]
[394062043,1763239060491,3756.82115212,0.00019438,2]
[394062044,1763239066488,1200.0,0.00019996,2]
[394062045,1763239082468,300.0,0.00019996,2]
[394062046,1763239135254,500.0,0.00019996,2]
[394062047,1763239135481,177.68397295,0.00019996,2]
[394062048,1763239142701,300.0,0.00019996,2]
[394062049,1763239170833,500.0,0.00019996,2]
[394062050,1763239171057,500.0,0.00019996,2]
[394062051,1763239174721,4182.16132356,0.000199,2]
[394062052,1763239202088,300.0,0.00019996,2]
[394062053,1763239203839,8858.37,0.00019996,2]
[394062054,1763239205563,300.0,0.00019996,2]
[394062056,1763239208273,1200.0,0.00019996,2]
[394062057,1763239221920,201.93286099,0.00019988,2]
[394062058,1763239232986,376.33330933,0.00019996,2]
[394062059,1763239233287,500.0,0.00019996,2]
[394062060,1763239233321,500.0,0.00019996,2]
[394062061,1763239233352,233.66652201,0.00019996,2]
[394062062,1763239233389,180.34962811,0.00019996,2]
[394062063,1763239233498,500.0,0.00019996,2]
[394062064,1763239233531,500.0,0.00019996,2]
[394062065,1763239233562,500.0,0.00019996,2]
[394062066,1763239233600,212.73785724,0.00019996,2]
[394062067,1763239242381,380.71005887,0.00019664,2]
[394062068,1763239245871,202.966829,0.00018999,2]
[394062069,1763239246540,207.0543751,0.00019438,2]
[394062070,1763239248450,828.2175004,0.00019438,2]
[394062071,1763239251657,1863.48937591,0.00019438,2]
[394062072,1763239262435,300.0,0.00019996,2]
[394062073,1763239264994,167.407172,0.00019151,2]
[394062074,1763239322439,300.0,0.00019996,2]
[394062075,1763239351009,1093.04216861,0.00019664,2]
[394062076,1763239356838,1937.12088517,0.00018821,2]
[394062077,1763239357126,1937.12088517,0.00019168,2]
[394062078,1763239357421,1937.12088517,0.00019272,2]
[394062079,1763239357713,1937.12088517,0.00019474,2]
[394062080,1763239358487,1937.12088521,0.00019841,2]
[394062081,1763239366488,1104.0,0.00019996,2]
[394062082,1763239370305,500.0,0.00019996,2]
[394062083,1763239382334,300.0,0.00019996,2]
[394062084,1763239442240,300.0,0.00019996,2]
[394062085,1763239448531,4554.3663321,0.00018998,2]
[394062086,1763239502137,300.0,0.00019996,2]
[394062087,1763239503136,190.01074035,0.00032877,120]
[394062088,1763239503200,652.0,0.00032877,120]
[394062089,1763239503235,2729.04,0.00032877,120]
[394062090,1763239503270,1000.0,0.00032877,120]
[394062091,1763239503308,1619.0,0.00032877,120]
[394062092,1763239503341,1003.65,0.00032877,120]
[394062093,1763239503375,1035.899999,0.00032877,120]
[394062094,1763239503411,1000.0,0.00032877,120]
[394062095,1763239503446,905.48747259,0.00032877,120]
[394062096,1763239504391,6270.21466575,0.00019897,2]
[394062097,1763239505390,300.0,0.00019996,2]
[394062099,1763239508813,1200.0,0.00019996,2]
[394062100,1763239517181,201.93286099,0.00019988,2]
[394062101,1763239519149,151.0,0.000187,2]
[394062102,1763239519530,151.0,0.000174,2]
[394062103,1763239519842,151.0,0.000161,2]
[394062104,1763239530835,3345.72905884,0.00019899,2]
[394062105,1763239554957,674.17406259,0.0001913,2]
[394062106,1763239557807,1213.51331266,0.0001913,2]
[394062107,1763239561039,2157.35700028,0.0001913,2]
[394062108,1763239562505,300.0,0.00019996,2]
[394062109,1763239577483,2747.74,0.00019988,3]
[394062110,1763239588153,1373.87,0.00019988,3]
[394062111,1763239598922,686.94,0.00019988,3]
[394062112,1763239609521,686.94,0.00019988,3]
[394062113,1763239623236,537.19,0.00019996,2]
[394062114,1763239623344,300.0,0.00019996,2]
[394062115,1763239623491,537.19,0.00019996,2]
[394062116,1763239623839,537.19,0.00019996,2]
[394062117,1763239656300,207.38523288,0.00019129,2]
[394062118,1763239659055,829.54093153,0.00019129,2]
[394062119,1763239661861,1864.60062886,0.00019129,2]
[394062120,1763239682224,300.0,0.00019996,2]
[394062122,1763239741147,150.0,0.00032876,120]
[394062123,1763239742214,300.0,0.00019996,2]
[394062124,1763239765815,800.0,0.00019829,2]
[394062125,1763239789130,688.6781664,0.00032794,120]
[394062126,1763239803135,1000.0,0.00032877,120]
[394062127,1763239803189,905.48747259,0.00032877,120]
[394062128,1763239805300,300.0,0.00019996,2]
[394062130,1763239807803,1200.0,0.00019996,2]
[394062131,1763239811439,201.93286099,0.00019986,2]
[394062132,1763239814826,5486.43783254,0.00019897,2]
[394062154,1763239832957,500.0,0.00019996,2]
[394062155,1763239832992,500.0,0.00019996,2]
[394062156,1763239833026,500.0,0.00019996,2]
[394062157,1763239833064,379.78192869,0.00019996,2]
[394062158,1763239833095,500.0,0.00019996,2]
[394062159,1763239833127,331.50764523,0.00019996,2]
[394062160,1763239833188,500.0,0.00019996,2]
[394062161,1763239833227,500.0,0.00019996,2]
[394062162,1763239833333,500.0,0.00019996,2]
[394062163,1763239833703,500.0,0.00019996,2]
[394062197,1763239838154,-50000.0,0.00019997,2]
[394062200,1763239838167,-150.0,0.00019997,2]
[394062202,1763239838176,-500.0,0.00019997,2]
[394062204,1763239838186,-500.0,0.00019997,2]
[394062207,1763239838195,-251.51848566,0.00019997,2]
[394062208,1763239838204,-578.22,0.00019997,2]
[394062210,1763239838213,-578.22,0.00019997,2]
[394062212,1763239838223,-578.22,0.00019997,2]
[394062214,1763239838232,-578.22,0.00019997,2]
[394062216,1763239838241,-578.22,0.00019997,2]
[394062218,1763239838251,-578.22,0.00019997,2]
[394062220,1763239838259,-537.19,0.00019997,2]
[394062222,1763239838268,-537.19,0.00019997,2]
[394062224,1763239838278,-537.19,0.00019997,2]
[394062226,1763239838287,-537.19,0.00019997,2]
[394062228,1763239838296,-537.19,0.00019997,2]
[394062230,1763239838306,-8489.28,0.00019997,2]
[394062232,1763239838315,-8489.28,0.00019997,2]
[394062234,1763239838325,-8489.28,0.00019997,2]
[394062236,1763239838334,-8489.28,0.00019997,2]
[394062238,1763239838343,-8489.28,0.00019997,2]
[394062240,1763239838352,-8489.28,0.00019997,2]
[394062242,1763239838362,-1662.65,0.00019997,2]
[394062244,1763239838371,-1662.65,0.00019997,2]
[394062246,1763239838381,-1662.65,0.00019997,2]
[394062248,1763239838390,-1662.65,0.00019997,2]
[394062250,1763239838399,-1662.65,0.00019997,2]
[394062252,1763239838410,-1662.65,0.00019997,2]
[394062254,1763239838419,-22193.1454314,0.00019998,2]
[394062256,1763239838428,-286.819185,0.00019998,2]
[394062258,1763239838437,-500.0,0.00019998,2]
[394062260,1763239838447,-500.0,0.00019998,2]
[394062262,1763239838456,-500.0,0.00019998,2]
[394062264,1763239838465,-500.0,0.00019998,2]
[394062266,1763239838474,-500.0,0.00019998,2]
[394062268,1763239838483,-500.0,0.00019998,2]
[394062270,1763239838493,-388.110021,0.00019998,2]
[394062272,1763239838502,-216.94605899,0.00019998,2]
[394062274,1763239838511,-1214.9577181,0.00019998,2]
[394062276,1763239838520,-151.0,0.00019998,7]
[394062278,1763239838529,-151.0,0.00019998,7]
[394062280,1763239838538,-153.551358,0.00019998,7]
[394062282,1763239838548,-21096.8425839,0.00019998,2]
[394062284,1763239838557,-500.0,0.00019998,2]
[394062286,1763239838567,-500.0,0.00019998,2]
[394062288,1763239838576,-500.0,0.00019998,2]
[394062290,1763239838585,-500.0,0.00019998,2]
[394062292,1763239838594,-500.0,0.00019998,2]
[394062294,1763239838604,-500.0,0.00019998,2]
[394062296,1763239838613,-151.0,0.00019998,7]
[394062298,1763239838623,-151.0,0.00019998,7]
[394062300,1763239838632,-286.869006,0.00019998,7]
[394062302,1763239838641,-47727.2894106,0.00019998,2]
[394062304,1763239838650,-151.0,0.00019998,7]
[394062306,1763239838662,-151.0,0.00019998,7]
[394062308,1763239838671,-153.600426,0.00019998,7]
[394062310,1763239838680,-934.0,0.00019998,2]
[394062312,1763239838690,-500.0,0.00019998,2]
[394062314,1763239838699,-802.0,0.00019998,2]
[394062316,1763239838710,-578.22,0.00019998,2]
[394062318,1763239838719,-578.22,0.00019998,2]
[394062320,1763239838728,-578.22,0.00019998,2]
[394062322,1763239838737,-537.19,0.00019998,2]
[394062324,1763239838746,-537.19,0.00019998,2]
[394062326,1763239838755,-537.19,0.00019998,2]
[394062328,1763239838765,-537.19,0.00019998,2]
[394062330,1763239838774,-8489.28,0.00019998,2]
[394062332,1763239838783,-8489.28,0.00019998,2]
[394062334,1763239838793,-8489.28,0.00019998,2]
[394062336,1763239838803,-222.98453927,0.00019998,2]
[394062338,1763239838813,-151.0,0.00019998,7]
[394062340,1763239838823,-151.0,0.00019998,7]
[394062342,1763239838833,-151.0,0.00019998,7]
[394062344,1763239838842,-151.0,0.00019998,7]
[394062346,1763239838853,-172.880002,0.00019998,7]
[394062348,1763239838863,-151.0,0.00019998,2]
[394062350,1763239838873,-151.0,0.00019998,2]
[394062352,1763239838883,-151.0,0.00019998,2]
[394062354,1763239838893,-185.00000001,0.00019998,2]
[394062356,1763239838903,-1662.65,0.00019998,2]
[394062358,1763239838917,-1662.65,0.00019998,2]
[394062360,1763239838928,-1662.65,0.00019998,2]
[394062363,1763239838939,-151.0,0.00019998,7]
[394062365,1763239838949,-151.0,0.00019998,7]
[394062367,1763239838960,-151.0,0.00019998,7]
[394062369,1763239838971,-151.0,0.00019998,7]
[394062371,1763239838981,-151.0,0.00019998,7]
[394062373,1763239838990,-151.0,0.00019998,7]
[394062375,1763239839001,-151.0,0.00019998,7]
[394062377,1763239839011,-151.0,0.00019998,7]
[394062379,1763239839021,-151.0,0.00019998,7]
[394062380,1763239839031,-151.0,0.00019998,7]
[394062383,1763239839041,-151.0,0.00019998,7]
[394062384,1763239839050,-194.705744,0.00019998,7]
[394062387,1763239839060,-257.7109323,0.00019998,2]
[394062388,1763239839069,-151.0,0.00019998,7]
[394062391,1763239839082,-151.0,0.00019998,7]
[394062392,1763239839092,-151.0,0.00019998,7]
[394062394,1763239839102,-151.0,0.00019998,7]
[394062397,1763239839111,-151.0,0.00019998,7]
[394062399,1763239839121,-151.0,0.00019998,7]
[394062401,1763239839134,-151.0,0.00019998,7]
[394062402,1763239839143,-281.95244,0.00019998,7]
[394062405,1763239839152,-151.0,0.00019998,7]
[394062406,1763239839165,-151.0,0.00019998,7]
[394062408,1763239839175,-151.0,0.00019998,7]
[394062410,1763239839185,-500.0,0.00019998,2]
[394062412,1763239839195,-500.0,0.00019999,2]
[394062414,1763239839205,-500.0,0.00019999,2]
[394062416,1763239839215,-248.74302745,0.00019999,2]
[394062419,1763239839225,-1156.0,0.00019999,2]
[394062421,1763239839234,-270.262335,0.00019999,7]
[394062422,1763239839243,-151.0,0.00019999,7]
[394062424,1763239839253,-151.0,0.00019999,7]
[394062426,1763239839262,-151.0,0.00019999,7]
[394062428,1763239839271,-151.0,0.00019999,7]
[394062430,1763239839281,-151.0,0.00019999,7]
[394062433,1763239839290,-151.0,0.00019999,7]
[394062434,1763239839299,-151.0,0.00019999,7]
[394062436,1763239839310,-151.000006,0.00019999,7]
[394062438,1763239839319,-500.0,0.00019999,2]
[394062440,1763239839328,-500.0,0.00019999,2]
[394062442,1763239839337,-500.0,0.00019999,2]
[394062445,1763239839348,-428.90108122,0.00019999,2]
[394062446,1763239839357,-151.0,0.00019999,7]
[394062448,1763239839367,-578.22,0.00019999,2]
[394062451,1763239839384,-578.22,0.00019999,2]
[394062453,1763239839394,-578.22,0.00019999,2]
[394062455,1763239839404,-578.22,0.00019999,2]
[394062457,1763239839414,-578.22,0.00019999,2]
[394062459,1763239839425,-578.22,0.00019999,2]
[394062462,1763239839507,-578.22,0.00019999,2]
[394062463,1763239839517,-206.50160604,0.00019999,2]
[394062464,1763239839527,-537.19,0.00019999,2]
[394062465,1763239839536,-537.19,0.00019999,2]
[394062466,1763239839545,-537.19,0.00019999,2]
[394062467,1763239839554,-537.19,0.00019999,2]
[394062468,1763239839563,-537.19,0.00019999,2]
[394062469,1763239839572,-537.19,0.00019999,2]
[394062470,1763239839581,-8489.28,0.00019999,2]
[394062471,1763239839591,-8489.28,0.00019999,2]
[394062472,1763239839600,-8489.28,0.00019999,2]
[394062473,1763239839609,-8489.28,0.00019999,2]
[394062474,1763239839618,-8489.28,0.00019999,2]
[394062475,1763239839627,-8489.28,0.00019999,2]
[394062476,1763239839636,-8489.28,0.00019999,2]
[394062478,1763239839646,-151.0,0.00019999,7]
[394062480,1763239839657,-151.0,0.00019999,7]
[394062482,1763239839667,-1662.65,0.00019999,2]
[394062484,1763239839676,-1662.65,0.00019999,2]
[394062486,1763239839685,-1662.65,0.00019999,2]
[394062488,1763239839694,-1662.65,0.00019999,2]
[394062490,1763239839703,-1662.65,0.00019999,2]
[394062492,1763239839713,-1662.65,0.00019999,2]
[394062494,1763239839722,-1662.65,0.00019999,2]
[394062496,1763239839732,-151.0,0.00019999,7]
[394062498,1763239839741,-151.0,0.00019999,7]
[394062500,1763239839751,-151.0,0.00019999,7]
[394062502,1763239839761,-151.0,0.00019999,7]
[394062504,1763239839770,-151.0,0.00019999,7]
[394062506,1763239839780,-151.0,0.00019999,7]
[394062508,1763239839789,-151.0,0.00019999,7]
[394062510,1763239839799,-151.0,0.00019999,7]
[394062512,1763239839807,-151.0,0.00019999,7]
[394062514,1763239839817,-151.0,0.00019999,7]
[394062517,1763239839827,-151.0,0.00019999,7]
[394062519,1763239839836,-151.0,0.00019999,7]
[394062521,1763239839845,-114842.66,0.0002,2]
[394062523,1763239839854,-4035.62514542,0.0002,2]
[394062525,1763239839863,-7088.93475684,0.0002,2]
[394062527,1763239839873,-2979.0,0.0002,2]
[394062529,1763239839882,-151.0,0.0002,7]
[394062531,1763239839892,-151.0,0.0002,7]
[394062533,1763239839901,-151.0,0.0002,7]
[394062535,1763239839910,-151.0,0.0002,7]
[394062537,1763239839920,-151.0,0.0002,2]
[394062539,1763239839929,-151.0,0.0002,7]
[394062541,1763239839938,-151.0,0.0002,7]
[394062543,1763239839947,-151.0,0.0002,7]
[394062545,1763239839957,-934.0,0.00020135,2]
[394062547,1763239839966,-500.0,0.00020135,2]
[394062549,1763239839975,-802.0,0.00020135,2]
[394062551,1763239839984,-151.0,0.00020135,2]
[394062553,1763239839994,-1156.0,0.00020136,2]
[394062555,1763239840003,-537.19,0.00020136,2]
[394062557,1763239840012,-934.0,0.00020272,2]
[394062559,1763239840022,-500.0,0.00020272,2]
[394062561,1763239840032,-802.0,0.00020272,2]
[394062563,1763239840041,-151.0,0.00020272,2]
[394062565,1763239840050,-500.0,0.00020272,2]
[394062567,1763239840059,-1156.0,0.00020273,2]
[394062569,1763239840068,-151.0,0.000204,3]
[394062571,1763239840078,-934.0,0.00020409,2]
[394062573,1763239840090,-500.0,0.00020409,2]
[394062575,1763239840099,-802.0,0.00020409,2]
[394062577,1763239840108,-261.80333903,0.00020409,2]
[394062579,1763239840117,-1156.0,0.0002041,2]
[394062581,1763239840127,-209.40437684,0.00020534,2]
[394062583,1763239840137,-934.0,0.00020546,2]
[394062585,1763239840146,-500.0,0.00020546,2]
[394062587,1763239840155,-802.0,0.00020546,2]
[394062589,1763239840164,-500.0,0.00020546,2]
[394062591,1763239840173,-1156.0,0.00020547,2]
[394062593,1763239840182,-301.0,0.00020557,2]
[394062595,1763239840192,-934.0,0.00020683,2]
[394062597,1763239840201,-500.0,0.00020683,2]
[394062599,1763239840210,-802.0,0.00020683,2]
[394062601,1763239840219,-1156.0,0.00020684,2]
[394062603,1763239840228,-172.41315228,0.00020698,2]
[394062605,1763239840238,-151.0,0.000207,3]
[394062607,1763239840248,-151.0,0.000207,4]
[394062609,1763239840256,-350.01,0.00020773,2]
[394062611,1763239840265,-378.0,0.00020796,2]
[394062613,1763239840274,-934.0,0.0002082,2]
[394062615,1763239840283,-224.981696,0.0002082,2]
[394062618,1763239840299,-802.0,0.0002082,2]
[394062620,1763239840309,-500.0,0.0002082,2]
[394062622,1763239840318,-537.19,0.0002082,2]
[394062624,1763239840327,-537.19,0.0002082,2]
[394062626,1763239840338,-537.19,0.0002082,2]
[394062628,1763239840348,-537.19,0.0002082,2]
[394062630,1763239840357,-537.31976742,0.0002082,2]
[394062632,1763239840366,-1156.0,0.00020821,2]
[394062634,1763239840375,-151.0,0.00020821,7]
[394062636,1763239840384,-151.0,0.00020821,7]
[394062638,1763239840394,-151.0,0.00020821,7]
[394062640,1763239840403,-578.22,0.00020865,2]
[394062642,1763239840412,-8489.28,0.00020865,2]
[394062644,1763239840421,-1662.65,0.00020865,2]
[394062646,1763239840430,-151.0,0.00020868,7]
[394062648,1763239840440,-578.22,0.00020871,2]
[394062650,1763239840450,-8489.28,0.00020871,2]
[394062652,1763239840459,-1662.65,0.00020871,2]
[394062654,1763239840469,-500.0,0.00020873,2]
[394062656,1763239840479,-500.65210024,0.00020873,2]
[394062658,1763239840488,-500.0,0.00020873,2]
[394062660,1763239840498,-215.54105053,0.00020873,2]
[394062662,1763239840507,-151.0,0.00020873,7]
[394062664,1763239840516,-151.0,0.00020873,7]
[394062666,1763239840525,-934.0,0.00020957,2]
[394062668,1763239840535,-802.0,0.00020957,2]
[394062670,1763239840544,-1156.0,0.00020958,2]
[394062672,1763239840553,-330.6798599,0.00020961,2]
[394062674,1763239840563,-578.22,0.00020964,2]
[394062676,1763239840573,-578.22,0.00020964,2]
[394062678,1763239840582,-578.22,0.00020964,2]
[394062680,1763239840591,-578.22,0.00020964,2]
[394062682,1763239840600,-578.22,0.00020964,2]
[394062684,1763239840609,-578.44496478,0.00020964,2]
[394062686,1763239840618,-8489.28,0.00020964,2]
[394062688,1763239840628,-8489.28,0.00020964,2]
[394062690,1763239840637,-8489.28,0.00020964,2]
[394062692,1763239840647,-8489.28,0.00020964,2]
[394062694,1763239840656,-8489.28,0.00020964,2]
[394062696,1763239840666,-8489.30866256,0.00020964,2]
[394062698,1763239840675,-1662.65,0.00020964,2]
[394062700,1763239840684,-1662.65,0.00020964,2]
[394062702,1763239840694,-1662.65,0.00020964,2]
[394062704,1763239840703,-1662.65,0.00020964,2]
[394062706,1763239840713,-1662.65,0.00020964,2]
[394062708,1763239840722,-1662.7591235,0.00020964,2]
[394062710,1763239840731,-500.0,0.00020973,2]
[394062712,1763239840740,-500.0,0.00020973,2]
[394062721,1763239840817,-448.42870503,0.00020973,2]
[394062723,1763239840827,-500.0,0.00020973,2]
[394062725,1763239840836,-500.0,0.00020973,2]
[394062727,1763239840846,-500.79496343,0.00020973,2]
[394062729,1763239840855,-500.0,0.00020973,2]
[394062731,1763239840865,-500.0,0.00020973,2]
[394062733,1763239840874,-500.0,0.00020973,2]
[394062735,1763239840883,-500.0,0.00020973,2]
[394062737,1763239840892,-500.0,0.00020973,2]
[394062739,1763239840902,-500.0,0.00020973,2]
[394062741,1763239840912,-500.0,0.00020973,2]
[394062743,1763239840921,-500.0,0.00020973,2]
[394062745,1763239840931,-500.0,0.00020973,2]
[394062747,1763239840940,-292.13648314,0.00020973,2]
[394062749,1763239840949,-500.0,0.00020973,2]
[394062751,1763239840958,-283.27030493,0.00020973,2]
[394062753,1763239840967,-500.0,0.00020973,2]
[394062755,1763239840976,-502.60182256,0.00020973,2]
[394062757,1763239840985,-500.0,0.00020973,2]
[394062758,1763239840994,-500.0,0.00020973,2]
[394062761,1763239841003,-500.0,0.00020973,2]
[394062763,1763239841012,-500.0,0.00020973,2]
[394062764,1763239841022,-500.0,0.00020973,2]
[394062766,1763239841030,-424.1274135,0.00020973,2]
[394062768,1763239841039,-500.0,0.00020973,2]
[394062770,1763239841049,-509.88878154,0.00020973,2]
[394062772,1763239841058,-501.29076547,0.00020973,2]
[394062774,1763239841068,-500.0,0.00020973,2]
[394062777,1763239841078,-500.0,0.00020973,2]
[394062779,1763239841091,-477.74577119,0.00020973,2]
[394062781,1763239841100,-500.0,0.00020973,2]
[394062782,1763239841109,-500.0,0.00020973,2]
[394062785,1763239841118,-500.0,0.00020973,2]
[394062786,1763239841128,-500.0,0.00020973,2]
[394062788,1763239841138,-222.84573978,0.00020973,2]
[394062791,1763239841147,-500.0,0.00020973,2]
[394062792,1763239841156,-500.0,0.00020973,2]
[394062794,1763239841166,-184.39492404,0.00020973,2]
[394062797,1763239841176,-500.0,0.00020973,2]
[394062799,1763239841185,-500.0,0.00020973,2]
[394062800,1763239841194,-500.0,0.00020973,2]
[394062802,1763239841203,-500.0,0.00020973,2]
[394062804,1763239841212,-500.0,0.00020973,2]
[394062806,1763239841221,-500.0,0.00020973,2]
[394062808,1763239841230,-500.0,0.00020973,2]
[394062810,1763239841239,-500.0,0.00020973,2]
[394062812,1763239841248,-209.47526039,0.00020973,2]
[394062814,1763239841258,-500.0,0.00020973,2]
[394062816,1763239841267,-506.44130238,0.00020973,2]
[394062818,1763239841276,-505.89614439,0.00020973,2]
[394062820,1763239841285,-500.0,0.00020973,2]
[394062822,1763239841295,-500.0,0.00020973,2]
[394062824,1763239841304,-471.58003305,0.00020973,2]
[394062826,1763239841313,-848.84405949,0.00020973,2]
[394062828,1763239841323,-825.05599922,0.00020973,2]
[394062830,1763239841333,-1856.37599825,0.00020973,2]
[394062832,1763239841342,-3300.22399688,0.00020973,2]
[394062834,1763239841352,-185.61972981,0.00020973,2]
[394062836,1763239841362,-742.47891925,0.00020973,2]
[394062838,1763239841372,-1670.57756831,0.00020973,2]
[394062840,1763239841382,-2969.91567699,0.00020973,2]
[394062842,1763239841393,-4640.4932453,0.00020973,2]
[394062844,1763239841404,-6675.62796296,0.00020973,2]
[394062846,1763239841418,-228.16824617,0.00020997,2]
[394062848,1763239841429,-10000.0,0.00021,5]
[394062850,1763239841443,-217.15233878,0.00021082,2]
[394062852,1763239841454,-934.0,0.00021094,2]
[394062854,1763239841465,-802.0,0.00021094,2]
[394062856,1763239841476,-500.0,0.00021094,2]
[394062858,1763239841487,-1156.0,0.00021095,2]
[394062860,1763239841497,-3345.72905882,0.00021124,2]
[394062862,1763239841509,-654.24633678,0.00021154,2]